fUST/lending_fUST_20260209
["ID","MTS","AMOUNT","RATE_DAILY","PERIOD"]
[404834324,1770607845003,-2787.97107083,0.0003333,10]
[404834326,1770607845011,-243.80677606,0.00033333,3]
[404834328,1770607845020,-3442.37060227,0.00033788,60]
[404834330,1770607845029,-300.0,0.00033965,30]
[404834332,1770607845038,-300.0,0.00033965,30]
[404834334,1770607845048,-300.0,0.00033965,30]
[404834335,1770607845058,-300.0,0.00033965,30]
[404834337,1770607845068,-300.0,0.00033965,30]
[404834339,1770607845077,-300.0,0.00033965,30]
[404834341,1770607845086,-300.0,0.00033965,30]
[404834343,1770607845095,-300.0,0.00033965,30]
[404834346,1770607845106,-300.0,0.00033965,30]
[404834348,1770607845115,-300.0,0.00033965,30]
[404834350,1770607845124,-300.0,0.00033965,30]
[404834352,1770607845134,-300.0,0.00033965,30]
[404834354,1770607845143,-99.08235828,0.00033965,30]
[404834431,1770607845832,-200.91764172,0.00033965,30]
[404834433,1770607845842,-300.0,0.00033965,30]
[404834435,1770607845851,-300.0,0.00033965,30]
[404834437,1770607845860,-300.0,0.00034,120]
[404834439,1770607845869,-250.0,0.00034,120]
[404834441,1770607845879,-1041.66666667,0.00034,120]
[404834443,1770607845888,-500.0,0.00034165,7]
[404834445,1770607845898,-179.87408814,0.00034302,12]
[404834448,1770607845908,-529.85602262,0.000345,120]
[404834450,1770607845917,-615.96375958,0.000345,2]
[404834451,1770607845926,-762.37378549,0.0003471,120]
[404834454,1770607845936,-1062.83194324,0.0003479,5]
[404836967,1770609038098,-150.0,0.00025095,7]
[404836969,1770609038108,-854.63104433,0.00026849,2]
[404836971,1770609038121,-2541.18932096,0.00026849,2]
[404836973,1770609038130,-1600.0,0.00030136,2]
[404836975,1770609038139,-180.37617153,0.00030137,2]
[404836977,1770609038148,-182.49358582,0.00030137,2]
[404836979,1770609038157,-247.73458042,0.00030137,2]
[404836981,1770609038166,-182.49358582,0.00030806,17]
[404836983,1770609038176,-247.73458042,0.00030806,17]
[404836985,1770609038185,-400.0,0.00031471,3]
[404836987,1770609038194,-400.0,0.00031471,3]
[404836989,1770609038204,-400.0,0.00031471,2]
[404836991,1770609038214,-400.0,0.00031471,3]
[404836993,1770609038223,-182.49358582,0.00031476,32]
[404836995,1770609038233,-247.73458042,0.00031476,32]
[404836997,1770609038242,-504.66780237,0.00032,2]
[404836999,1770609038251,-182.49358582,0.00032145,48]
[404837001,1770609038261,-247.73458042,0.00032145,48]
[404837003,1770609038270,-2240.0,0.00032613,3]
[404837005,1770609038279,-207.98949997,0.00032677,110]
[404837007,1770609038289,-182.49358579,0.00032677,120]
[404837009,1770609038298,-180.37617152,0.00032677,120]
[404837012,1770609038308,-247.7345804,0.00032677,120]
[404837014,1770609038317,-182.49358582,0.00032815,63]
[404837016,1770609038327,-247.73458042,0.00032815,63]
[404837017,1770609038336,-572.15496668,0.00032947,7]
[404837019,1770609038346,-389.1011748,0.00032947,7]
[404837022,1770609038355,-500.0,0.00032947,2]
[404837024,1770609038364,-500.0,0.00032947,7]
[404837026,1770609038373,-221.53321395,0.00032947,7]
[404837028,1770609038382,-14240.1510817,0.00032948,2]
[404837030,1770609038392,-861.8296754,0.00032948,2]
[404837032,1770609038401,-1152.34625653,0.000332,117]
[404837034,1770609038412,-1152.34625653,0.000332,117]
[404837036,1770609038421,-182.49358582,0.00033484,79]
[404837037,1770609038430,-247.73458042,0.00033484,79]
[404837039,1770609038439,-300.0,0.00033606,30]
[404837041,1770609038448,-300.0,0.00033606,30]
[404837043,1770609038457,-300.0,0.00033606,30]
[404837045,1770609038467,-300.0,0.00033606,30]
[404837047,1770609038475,-300.0,0.00033606,30]
[404837049,1770609038485,-300.0,0.00033606,30]
[404837051,1770609038494,-300.0,0.00033606,30]
[404837053,1770609038503,-300.0,0.00033606,30]
[404837055,1770609038511,-300.0,0.00033606,30]
[404837057,1770609038521,-300.0,0.00033606,30]
[404837060,1770609038531,-300.0,0.00033606,30]
[404837061,1770609038540,-300.0,0.00033606,30]
[404837063,1770609038550,-300.0,0.00033606,30]
[404837065,1770609038561,-300.0,0.00033606,30]
[404837068,1770609038571,-300.0,0.00033606,30]
[404837069,1770609038580,-368.0,0.00033867,3]
[404837071,1770609038589,-204.0,0.00033867,3]
[404837073,1770609038599,-560.0,0.00033867,2]
[404837075,1770609038608,-205.0,0.00033867,3]
[404837077,1770609038617,-450.30559948,0.00034,30]
[404837079,1770609038627,-182.49358582,0.00034154,94]
[404837081,1770609038637,-247.73458042,0.00034154,94]
[404837083,1770609038646,-817.864443,0.00034404,2]
[404837086,1770609038658,-300.0,0.000345,120]
[404837088,1770609038666,-220.03632158,0.00034588,13]
[404837090,1770609038676,-500.0,0.00034789,2]
[404837092,1770609038686,-341.90450246,0.00034789,7]
[404837094,1770609038696,-1517.54837326,0.0003479,5]
[404837249,1770609040190,-1304.20534013,0.0003479,5]
[404837251,1770609040200,-820.24009498,0.0003479,7]
[404837257,1770609040243,-63.60790502,0.0003479,7]
[404837259,1770609040254,-606.06343107,0.000349,2]
[404837261,1770609040263,-1559.30037833,0.0003499,2]
[404837263,1770609040273,-5108.17685224,0.0003499,2]
[404837265,1770609040283,-500.0,0.00034999,2]
[404837267,1770609040293,-500.0,0.00034999,2]
[404837269,1770609040302,-500.0,0.00034999,2]
[404837271,1770609040312,-500.0,0.00034999,2]
[404837273,1770609040321,-500.0,0.00034999,2]
[404837275,1770609040330,-500.0,0.00034999,2]
[404837277,1770609040340,-500.0,0.00034999,2]
[404837279,1770609040349,-500.0,0.00034999,2]
[404837281,1770609040358,-334.23143334,0.00034999,2]
[404837451,1770609046119,-165.76856666,0.00034999,2]
[404837452,1770609046128,-500.0,0.00034999,2]
[404837453,1770609046138,-500.0,0.00034999,2]
[404837454,1770609046148,-500.0,0.00034999,2]
[404837455,1770609046158,-500.0,0.00034999,2]
[404837456,1770609046168,-500.0,0.00034999,2]
[404837457,1770609046178,-500.0,0.00034999,2]
[404837458,1770609046187,-500.0,0.00034999,2]
[404837459,1770609046198,-500.0,0.00034999,2]
[404837460,1770609046208,-500.0,0.00034999,30]
[404837461,1770609046218,-307.84478728,0.00034999,31]
[404837462,1770609046230,-192.15521272,0.00034999,31]
[404837463,1770609046240,-500.0,0.00034999,32]
[404837464,1770609046249,-300.0,0.00034999,33]
[404837465,1770609046259,-12215.124614,0.00035,120]
[404837466,1770609046268,-150.0,0.00035,69]
[404837467,1770609046278,-10799.0562227,0.00035,2]
[404837468,1770609046287,-301531.30152844,0.00035,2]
[404837469,1770609046296,-431.10954602,0.00035,40]
[404837470,1770609046306,-1000.0,0.00035,7]
[404837471,1770609046316,-160.59641168,0.00035,2]
[404837472,1770609046325,-1000.0,0.00035,2]
[404837473,1770609046335,-1000.0,0.00035,120]
[404837474,1770609046344,-256.90827689,0.00035,120]
[404837475,1770609046354,-184.69354311,0.00035,5]
[404837476,1770609046364,-16107.54,0.00035,14]
[404837477,1770609046374,-238.64,0.00035,30]
[404837478,1770609046383,-1152.34625653,0.00035003,120]
[404837479,1770609046393,-549.5791557,0.00035015,2]
[404837480,1770609046403,-741.97989042,0.00035015,2]
[404837481,1770609046412,-1041.66666667,0.00035015,2]
[404837482,1770609046422,-239.0,0.00035294,3]
[404837483,1770609046431,-600.0,0.00035597,30]
[404837484,1770609046440,-151.0,0.00035616,31]
[404837485,1770609046450,-151.0,0.00035616,31]
[404837486,1770609046459,-151.0,0.00035616,31]
[404837487,1770609046468,-151.0,0.00035616,31]
[404837488,1770609046477,-151.0,0.00035616,31]
[404837489,1770609046486,-151.0,0.00035616,31]
[404837490,1770609046496,-151.0,0.00035616,31]
[404837491,1770609046506,-151.0,0.00035616,31]
[404837492,1770609046515,-151.0,0.00035616,31]
[404837493,1770609046525,-151.0,0.00035616,31]
[404837494,1770609046535,-151.0,0.00035616,31]
[404837495,1770609046544,-151.0,0.00035616,31]
[404837496,1770609046553,-283.180982,0.00035616,31]
[404837497,1770609046563,-817.864443,0.00035852,2]
[404837499,1770609046572,-302.062433,0.00035948,60]
[404837502,1770609046581,-161.33796931,0.00036,30]
[404837504,1770609046590,-1000.0,0.00036,120]
[404837506,1770609046599,-247.401171,0.00036036,60]
[404837507,1770609046610,-165.391936,0.000361,60]
[404837508,1770609046620,-205.6767119,0.0003621,2]
[404837509,1770609046630,-372.176364,0.00036226,60]
[404837510,1770609046640,-267.51274096,0.0003624,2]
[404837511,1770609046651,-244.204507,0.00036321,60]
[404837512,1770609046661,-729.73955032,0.0003699,3]
[404837513,1770609046671,-2047.79353511,0.00037,2]
[404837514,1770609046683,-1000.0,0.00037,120]
[404837515,1770609046693,-39535.21650467,0.00037,2]
[404837516,1770609046708,-151.0,0.00037,31]
[404837517,1770609046724,-151.0,0.00037,31]
[404837518,1770609046735,-151.0,0.00037,31]
[404837519,1770609046745,-716.17,0.00037132,60]
[404837520,1770609046757,-3177.4071914,0.00037184,2]
[404837521,1770609046774,-716.17,0.00037232,60]
[404837522,1770609046791,-1000.0,0.000373,15]
[404837523,1770609046803,-817.864443,0.000373,2]
[404837524,1770609046815,-716.17,0.00037332,60]
[404837525,1770609046823,-716.17,0.00037432,60]
[404837526,1770609046833,-1152.34625653,0.00037486,120]
[404837527,1770609046844,-729.73955032,0.0003749,3]
[404837528,1770609046856,-16107.54,0.000375,14]
[404837529,1770609046867,-716.17,0.00037532,60]
[404837530,1770609046877,-1000.0,0.000376,15]
[404837531,1770609046887,-200.0,0.000376,120]
[404837532,1770609046900,-309.30605,0.000376,120]
[404837533,1770609046914,-238.64,0.000376,30]
[404837534,1770609046930,-716.17,0.00037632,60]
[404837535,1770609046945,-716.17,0.00037732,60]
[404837536,1770609046960,-1023.25340934,0.000378,2]
[404837537,1770609046969,-716.17,0.00037832,60]
[404837538,1770609046980,-152.85567004,0.0003784,120]
[404837539,1770609046990,-1000.0,0.000379,15]
[404837540,1770609046999,-716.17,0.00037932,60]
[404837541,1770609047008,-457.00667942,0.00038,120]
[404837542,1770609047017,-440.55,0.00038,120]
[404837543,1770609047026,-711.4829,0.00038,60]
[404837544,1770609047045,-2339.6971,0.00038,30]
[404837545,1770609047054,-300.0,0.00038,120]
[404837546,1770609047063,-1135.93,0.00038,2]
[404837547,1770609047073,-1000.0,0.00038,120]
[404837548,1770609047086,-716.17,0.00038032,60]
[404837549,1770609047095,-151.9933008,0.00038087,2]
[404837550,1770609047106,-708.9753754,0.0003813,2]
[404837551,1770609047115,-716.17,0.00038132,60]
[404837552,1770609047124,-200.0,0.00038153,120]
[404837553,1770609047135,-1000.0,0.000382,15]
[404837554,1770609047144,-518.03,0.000382,2]
[404837555,1770609047153,-518.03,0.000382,2]
[404837556,1770609047164,-518.03,0.000382,2]
[404837557,1770609047173,-518.03,0.000382,2]
[404837558,1770609047182,-518.03,0.000382,2]
[404837559,1770609047191,-518.03,0.000382,2]
[404837560,1770609047200,-518.03,0.000382,2]
[404837561,1770609047209,-518.03,0.000382,2]
[404837562,1770609047219,-518.03,0.000382,2]
[404837563,1770609047228,-518.03,0.000382,2]
[404837564,1770609047238,-518.03,0.000382,2]
[404837565,1770609047247,-518.03,0.000382,2]
[404837566,1770609047258,-518.03,0.000382,2]
[404837567,1770609047267,-518.03,0.000382,2]
[404837568,1770609047277,-518.03,0.000382,2]
[404837569,1770609047286,-518.03,0.000382,2]
[404837570,1770609047295,-518.03,0.000382,2]
[404837571,1770609047304,-518.03,0.000382,2]
[404837572,1770609047313,-518.03,0.000382,2]
[404837573,1770609047325,-518.03,0.000382,2]
[404837574,1770609047335,-518.03,0.000382,2]
[404837575,1770609047345,-518.03,0.000382,2]
[404837576,1770609047354,-518.03,0.000382,2]
[404837577,1770609047364,-518.03,0.000382,2]
[404837578,1770609047373,-518.03,0.000382,2]
[404837579,1770609047383,-518.03,0.000382,2]
[404837580,1770609047392,-518.03,0.000382,2]
[404837581,1770609047401,-518.03,0.000382,2]
[404837582,1770609047411,-518.03,0.000382,2]
[404837583,1770609047420,-518.03,0.000382,2]
[404837584,1770609047430,-518.03,0.000382,2]
[404837585,1770609047439,-518.03,0.000382,2]
[404837586,1770609047448,-518.03,0.000382,2]
[404837587,1770609047457,-518.03,0.000382,2]
[404837588,1770609047466,-518.03,0.000382,2]
[404837589,1770609047475,-518.03,0.000382,2]
[404837590,1770609047484,-518.03,0.000382,2]
[404837591,1770609047493,-518.03,0.000382,2]
[404837592,1770609047502,-518.03,0.000382,2]
[404837593,1770609047511,-518.03,0.000382,2]
[404837594,1770609047520,-592.18,0.000382,2]
[404837595,1770609047529,-716.17,0.00038232,60]
[404837596,1770609047538,-716.17,0.00038332,60]
[404837597,1770609047547,-729.73955032,0.00038346,3]
[404837598,1770609047556,-248.793031,0.00038356,15]
[404837599,1770609047567,-151.0,0.00038356,120]
[404837600,1770609047575,-285.746206,0.00038356,120]
[404837601,1770609047584,-151.0,0.00038356,120]
[404837602,1770609047594,-151.0,0.00038356,120]
[404837603,1770609047603,-151.0,0.00038356,120]
[404837604,1770609047612,-165.85373,0.00038356,120]
[404837605,1770609047622,-151.269241,0.00038356,7]
[404837606,1770609047631,-191.690866,0.00038356,120]
[404837607,1770609047640,-191.690866,0.00038356,120]
[404837608,1770609047650,-191.690866,0.00038356,120]
[404837609,1770609047659,-191.690866,0.00038356,120]
[404837610,1770609047668,-191.690866,0.00038356,120]
[404837611,1770609047677,-191.690866,0.00038356,120]
[404837612,1770609047686,-191.690866,0.00038356,120]
[404837613,1770609047695,-191.690866,0.00038356,120]
[404837614,1770609047704,-191.690866,0.00038356,120]
[404837615,1770609047713,-191.690866,0.00038356,120]
[404837616,1770609047723,-191.690866,0.00038356,120]
[404837617,1770609047732,-191.690866,0.00038356,120]
[404837618,1770609047741,-191.690866,0.00038356,120]
[404837619,1770609047750,-191.690866,0.00038356,120]
[404837620,1770609047759,-191.690866,0.00038356,120]
[404837621,1770609047769,-191.690866,0.00038356,120]
[404837622,1770609047778,-191.690866,0.00038356,120]
[404837623,1770609047787,-191.690866,0.00038356,120]
[404837624,1770609047796,-191.690866,0.00038356,120]
[404837625,1770609047805,-191.690856,0.00038356,120]
[404837626,1770609047814,-151.0,0.00038356,120]
[404837627,1770609047823,-151.0,0.00038356,120]
[404837628,1770609047832,-151.0,0.00038356,120]
[404837629,1770609047841,-151.0,0.00038356,120]
[404837630,1770609047850,-151.0,0.00038356,120]
[404837631,1770609047859,-151.0,0.00038356,120]
[404837632,1770609047868,-151.0,0.00038356,120]
[404837633,1770609047877,-215.648608,0.00038356,120]
[404837634,1770609047886,-3965.07538545,0.000384,14]
[404837635,1770609047896,-716.17,0.00038432,120]
[404837636,1770609047905,-1000.0,0.000385,15]
[404837637,1770609047914,-216.54679949,0.0003851,2]
[404837638,1770609047923,-716.17,0.00038532,120]
[404837639,1770609047932,-2052.28,0.000386,14]
[404837640,1770609047941,-716.17,0.00038632,120]
[404837641,1770609047950,-343.48,0.00038732,120]
[404837642,1770609047959,-716.17,0.00038732,120]
[404837643,1770609047968,-817.864443,0.00038749,2]
[404837644,1770609047977,-1000.0,0.000388,15]
[404837645,1770609047986,-150.16,0.00038832,120]
[404837646,1770609047995,-343.48,0.00038832,120]
[404837647,1770609048003,-716.17,0.00038832,120]
[404837648,1770609048012,-3750.01111119,0.00038834,2]
[404837649,1770609048022,-150.16,0.00038932,120]
[404837650,1770609048031,-343.48,0.00038932,120]
[404837651,1770609048043,-716.17,0.00038932,120]
[404837652,1770609048053,-1620.10967046,0.00038967,11]
[404837653,1770609048062,-1459.47910064,0.0003899,3]
[404837654,1770609048072,-750.839588,0.00039,120]
[404837655,1770609048082,-1000.0,0.00039,120]
[404837656,1770609048091,-479.53426755,0.00039,30]
[404837657,1770609048101,-152.82960437,0.00039,120]
[404837658,1770609048110,-35875.65585169,0.00039,5]
[404837666,1770609738716,-397.42514209,0.00023691,2]
[404837720,1770610238238,-474.73221129,0.00026575,2]
[404837722,1770610238249,-153.10183982,0.00027343,2]
[404837734,1770610238395,-1591.55,0.00028,2]
[404837735,1770610238406,-843.19859868,0.00029,10]
[404837736,1770610238420,-150.0,0.00029329,7]
[404837737,1770610238430,-1000.0,0.0003361,30]
[404837738,1770610238439,-741.97989042,0.00038131,2]
[404837739,1770610238447,-1041.66666667,0.00038131,2]
[404837740,1770610238458,-851.0,0.00038458,30]
[404837741,1770610238467,-265.31114209,0.00038853,7]
[404837742,1770610238476,-3440.15754049,0.00038854,2]
[404837743,1770610238489,-9435.85786321,0.00038854,2]
[404837744,1770610238498,-2586.77174986,0.00038932,2]
[404837745,1770610238507,-239.33315172,0.00038999,15]
[404837746,1770610238516,-500.0,0.00038999,15]
[404837748,1770610238528,-500.0,0.00038999,15]
[404837749,1770610238537,-441.90626504,0.00038999,15]
[404837751,1770610238546,-3578.96579321,0.00039,5]
[404837754,1770610238558,-5825.42957261,0.00039,5]
[404837756,1770610238569,-7015.90805954,0.00039,5]
[404837758,1770610238580,-1677.61615989,0.00039,5]
[404837760,1770610238591,-1005.27979381,0.00039,5]
[404838121,1770610245308,-1394.1524,0.00039,5]
[404838125,1770610246258,-5939.55030496,0.00039,5]
[404838126,1770610246269,-286.596,0.00039,5]
[404838219,1770611438423,-6971.51579838,0.00025,30]
[404838447,1770611440606,-11438.15133081,0.00025,30]
[404838449,1770611440615,-500.84813474,0.00025205,2]
[404838451,1770611440625,-500.0,0.00026848,2]
[404838453,1770611440635,-500.0,0.00026848,2]
[404838455,1770611440644,-500.0,0.00026848,2]
[404838457,1770611440654,-369.59660821,0.00026848,2]
[404838459,1770611440663,-500.0,0.00026848,2]
[404838461,1770611440673,-500.0,0.00026848,2]
[404838463,1770611440682,-500.0,0.00026848,2]
[404838465,1770611440691,-500.0,0.00026848,2]
[404838467,1770611440701,-500.0,0.00026848,2]
[404838469,1770611440710,-500.0,0.00026848,2]
[404838471,1770611440720,-500.0,0.00026848,2]
[404838473,1770611440729,-500.0,0.00026848,2]
[404838475,1770611440739,-500.0,0.00026848,2]
[404838477,1770611440748,-500.0,0.00026848,2]
[404838479,1770611440757,-128.74759047,0.00026848,2]
[404838587,1770611446367,-90.38437517,0.00026848,2]
[404838588,1770611446376,-364.54769683,0.00026848,2]
[404838589,1770611446530,-135.45230317,0.00026848,2]
[404838590,1770611446539,-366.51569659,0.00026848,2]
[404838591,1770611446553,-133.48430341,0.00026848,2]
[404838592,1770611446562,-500.0,0.00026848,2]
[404838593,1770611446571,-500.0,0.00026848,2]
[404838594,1770611446580,-250.0,0.00033,10]
[404838595,1770611446589,-250.0,0.000331,10]
[404838596,1770611446598,-250.0,0.000332,10]
[404838597,1770611446607,-2734.56266648,0.000332,117]
[404838598,1770611446617,-2734.56266645,0.000332,117]
[404838599,1770611446626,-2734.56266645,0.00033221,117]
[404838600,1770611446635,-290.156398,0.000333,10]
[404838601,1770611446644,-219.952317,0.00035809,2]
[404838602,1770611446653,-5066.90929004,0.00035885,2]
[404838603,1770611446662,-217.430535,0.00035886,60]
[404838604,1770611446671,-2734.56266645,0.00036594,120]
[404838605,1770611446680,-180.55379057,0.000382,2]
[404838606,1770611446690,-1041.66666667,0.00038296,2]
[404838607,1770611446699,-3347.4278205,0.00038489,2]
[404838608,1770611446709,-741.97989042,0.00038543,2]
[404838609,1770611446718,-509.33438553,0.0003893,15]
[404838610,1770611446727,-306.76400401,0.0003893,15]
[404838611,1770611446736,-500.0,0.0003893,15]
[404838612,1770611446745,-741.97989042,0.00038931,7]
[404838613,1770611446754,-20155.29077843,0.00039,5]
[404838675,1770612632426,-529.82092984,0.00026575,2]
[404838677,1770612632436,-500.0,0.00028478,7]
[404838679,1770612632446,-256.91298423,0.00029594,2]
[404838681,1770612632457,-150.0,0.00033,10]
[404838683,1770612632467,-546.91253329,0.0003343,118]
[404838685,1770612632477,-1397.52720694,0.00033529,3]
[404838748,1770612638561,-202.47279306,0.00033529,3]
[404838751,1770612638572,-300.0,0.0003353,3]
[404838753,1770612638582,-400.0,0.0003353,2]
[404838755,1770612638593,-300.0,0.0003353,3]
[404838757,1770612638604,-500.0,0.00033531,7]
[404838759,1770612638617,-500.0,0.00033531,7]
[404838762,1770612638631,-500.0,0.00033531,7]
[404838764,1770612638644,-275.92691376,0.00033531,7]
[404838766,1770612638654,-440.14991348,0.00033531,7]
[404838768,1770612638665,-309.28960279,0.00033531,7]
[404838771,1770612638680,-190.71039721,0.00033531,7]
[404838773,1770612638691,-500.0,0.00033531,7]
[404838775,1770612638702,-500.0,0.00033531,7]
[404838777,1770612638712,-586.09519813,0.00033531,7]
[404838779,1770612638722,-500.0,0.00033531,7]
[404838782,1770612638735,-500.0,0.00033531,7]
[404838784,1770612638746,-500.0,0.00033531,7]
[404838786,1770612638759,-500.0,0.00033531,7]
[404838788,1770612638770,-499.99999999,0.00033531,7]
[404838791,1770612638782,-500.0,0.00033531,7]
[404838793,1770612638793,-500.0,0.00033531,7]
[404838795,1770612638805,-422.53734939,0.00033531,7]
[404838797,1770612638816,-11399.3100936,0.00033532,2]
[404838799,1770612638826,-278.56598706,0.00034758,4]
[404838801,1770612638837,-209.86335732,0.00034758,4]
[404838803,1770612638847,-237.90617111,0.00034763,4]
[404838805,1770612638858,-183.23255663,0.00034851,4]
[404838807,1770612638869,-546.91253329,0.00035068,120]
[404838810,1770612638881,-1041.66666667,0.00035379,2]
[404838812,1770612638892,-500.0,0.00035951,30]
[404838814,1770612638903,-1600.0,0.00036151,3]
[404838816,1770612638914,-546.91253329,0.00036706,120]
[404838818,1770612638925,-741.97989042,0.00037358,7]
[404838821,1770612638937,-2543.5298867,0.00037779,2]
[404838823,1770612638948,-2707.50902577,0.000381,2]
[404838825,1770612638959,-211.41168661,0.000382,2]
[404838827,1770612638970,-159.27129797,0.000382,2]
[404838829,1770612638981,-324.67182621,0.000382,2]
[404838831,1770612638992,-388.97981366,0.000382,2]
[404838834,1770612639003,-546.91253329,0.00038344,120]
[404838836,1770612639014,-567.5382309,0.00038727,2]
[404838838,1770612639025,-2707.50902575,0.00038857,2]
[404838840,1770612639037,-741.97989042,0.00038975,2]
[404838842,1770612639048,-500.0,0.00038997,15]
[404838845,1770612639060,-312.19636128,0.00038997,15]
[404838847,1770612639071,-206.53406987,0.00038997,15]
[404838849,1770612639086,-999.90366941,0.00039,5]
[404838851,1770612639097,-150.16,0.00039032,120]
[404838853,1770612639113,-343.48,0.00039032,120]
[404838855,1770612639126,-716.17,0.00039032,120]
[404838858,1770612639139,-1000.0,0.000391,15]
[404838860,1770612639151,-150.16,0.00039132,120]
[404838862,1770612639162,-343.48,0.00039132,120]
[404838864,1770612639174,-716.17,0.00039132,120]
[404838866,1770612639187,-272.621481,0.00039174,2]
[404838868,1770612639198,-150.16,0.00039232,120]
[404838871,1770612639210,-343.48,0.00039232,120]
[404838873,1770612639223,-716.17,0.00039232,120]
[404838875,1770612639235,-150.16,0.00039332,120]
[404838877,1770612639246,-343.48,0.00039332,120]
[404838879,1770612639258,-716.17,0.00039332,120]
[404838881,1770612639269,-1000.0,0.000394,15]
[404838883,1770612639280,-200.0,0.00039414,120]
[404838886,1770612639291,-150.16,0.00039432,120]
[404838888,1770612639301,-343.48,0.00039432,120]
[404838890,1770612639311,-716.17,0.00039432,120]
[404838892,1770612639320,-200.0,0.00039459,120]
[404838894,1770612639330,-155.16102179,0.000395,120]
[404838896,1770612639339,-1702.85833409,0.000395,120]
[404838915,1770612639504,-1184.403016,0.000395,120]
[404838918,1770612639523,-647.81477847,0.000395,120]
[404838920,1770612639533,-1512.10235918,0.000395,11]
[404838922,1770612639542,-150.16,0.00039532,120]
[404838924,1770612639552,-343.48,0.00039532,120]
[404838926,1770612639562,-716.17,0.00039532,120]
[404838928,1770612639573,-845.64674644,0.00039555,2]
[404838930,1770612639582,-637.08519188,0.00039555,2]
[404838932,1770612639592,-151.0,0.00039576,2]
[404838934,1770612639602,-153.93979081,0.00039576,2]
[404838935,1770612639611,-345.79532417,0.00039576,2]
[404838936,1770612639620,-583.79164026,0.0003959,3]
[404838937,1770612639629,-3989.53902494,0.000396,2]
[404838938,1770612639637,-78362.35697028,0.000396,2]
[404838939,1770612639649,-21863.74200702,0.000396,2]
[404838940,1770612639663,-518.21374153,0.000396,2]
[404839032,1770612640630,-478.00784006,0.000396,2]
[404839039,1770612640684,-4947.33902297,0.000396,2]
[404839041,1770612640696,-8164.04677971,0.000396,2]
[404839043,1770612640706,-1039.83627266,0.000396,2]
[404839045,1770612640715,-151.0,0.000396,120]
[404839047,1770612640724,-157.171362,0.000396,120]
[404839049,1770612640734,-151.0,0.000396,120]
[404839051,1770612640745,-659.402118,0.000396,120]
[404839053,1770612640754,-659.402118,0.000396,120]
[404839055,1770612640764,-659.402118,0.000396,120]
[404839057,1770612640775,-659.402118,0.000396,120]
[404839059,1770612640784,-2707.50902575,0.00039614,2]
[404839061,1770612640793,-150.16,0.00039632,120]
[404839063,1770612640802,-343.48,0.00039632,120]
[404839064,1770612640811,-716.17,0.00039632,120]
[404839067,1770612640821,-189.74819206,0.0003966,2]
[404839068,1770612640831,-598.0,0.00039664,30]
[404839070,1770612640841,-1000.0,0.000397,15]
[404839072,1770612640850,-150.33726948,0.00039732,120]
[404839074,1770612640859,-343.48,0.00039732,120]
[404839076,1770612640868,-716.17,0.00039732,120]
[404839078,1770612640878,-407.54122834,0.0003974,2]
[404839080,1770612640887,-600.0,0.00039779,60]
[404839082,1770612640896,-1583.63583469,0.00039812,21]
[404839084,1770612640907,-416.36416531,0.00039812,21]
[404839086,1770612640917,-343.48,0.00039832,120]
[404839088,1770612640926,-716.17,0.00039832,120]
[404839090,1770612640935,-660.592791,0.00039847,7]